Cogmind - Beta 12 @@@ ROGUE MODE // 2023.03.16 @ 15:21:14 Player: ArabianSandBoa Result: Destroyed by 8R-AWN with 8R-AWN's Boregun Performance ------------- Evolutions (1) 500 Regions Visited (5) 1000 Robots Destroyed (111) 555 Value Destroyed (2074) 2074 Prototype IDs (47) 940 Alien Tech Used (0) 0 Bonus (-1070) -1070 TOTAL SCORE: 3999 Bonus ------- High Alert Combat Kills 57 Follower Combat Kills 92 Aligned with FarCom 300 Friendly Fire -1519 Cogmind --------- Core Integrity 0/400 Matter 56/300 Energy 150/150 System Corruption 1% Temperature Cool (0) Movement Treading (153) Location -9/Exiles Parts ------- > --- POWER (1) -------- Light Angular Momentum Engine > --- PROPULSION (3) --- Armored Treads Advanced Treads Advanced Treads (fused) > --- UTILITY (3) ------ Cooling System Medium Armor Plating > --- WEAPON (2) ------- Autogun > --- INVENTORY (5) ---- Improved Treads Potential Leg Potential Leg Medium Armor Plating Plasma Cutter Peak State ------------ > --- POWER ------------ Heavy Ion Engine > --- PROPULSION ------- Advanced Treads Advanced Treads Advanced Treads > --- UTILITY ---------- Cargo Storage Unit Thief Drone Bay > --- WEAPON ----------- Beamcaster Plasma Cutter > --- INVENTORY -------- Cooled Ion Engine Cooled Ion Engine Cooled Ion Engine Light Angular Momentum Engine Improved Treads Improved Treads Armored Treads Armored Wheel Improved Flight Unit Cesium-ion Thruster Cesium-ion Thruster Cesium-ion Thruster Cesium-ion Thruster Cooling System Cooling System Advanced Targeting Computer Improved Propulsion Shielding Medium Armor Plating Medium Armor Plating Medium Armor Plating Medium Armor Plating Medium Armor Plating Hardened Medium Armor Plating Light EM Pulse Cannon Advanced Beam Cannon Autogun Autogun YI-UF0's Doublenader Datajack [Rating: 35] Favorites ----------- Power Heavy Ion Engine Engine Heavy Ion Engine Power Core Light Nuclear Core Propulsion Advanced Treads Treads Advanced Treads Leg Aluminum Leg Wheel Compact Wheel Utility Cargo Storage Unit Device Improved Heat Sink Storage Cargo Storage Unit Processor Advanced Targeting Computer Hackware Hacking Suite Protection Medium Armor Plating Weapon Autogun Energy Gun Improved EM Shotgun Energy Cannon Advanced Beam Cannon Ballistic Gun Autogun Ballistic Cannon Light Cannon Launcher Mini Grenade Launcher Special Weapon Plasma Cutter Slashing Weapon Makeshift Axe Special Melee Weapon Datajack Build | -11 -10 -10 -9 -9 -9 ------- Run | Jun Mat Min Mat Min Exi Slots Evolved 2 | . . . 2 . . Power . | . . . . . . Propulsion 1 | . . . 1 . . Utility 1 | . . . 1 . . Weapon . | . . . . . . Parts Attached 86 | 5 10 11 35 10 15 Power 8 | . 1 1 5 . 1 Engine 6 | . 1 1 3 . 1 Core 2 | . . . 2 . . Reactor . | . . . . . . Propulsion 26 | 2 6 4 10 2 2 Treads 20 | 2 3 2 10 2 1 Leg . | . . . . . . Wheel 6 | . 3 2 . . 1 Hover . | . . . . . . Flight . | . . . . . . Utility 19 | 2 1 . 6 3 7 Device 7 | 2 . . 3 1 1 Storage 2 | . 1 . . . 1 Processor 1 | . . . 1 . . Hackware 1 | . . . 1 . . Protection 8 | . . . 1 2 5 Artifact . | . . . . . . Weapon 33 | 1 2 6 14 5 5 Energy Gun 8 | . 1 1 4 2 . Energy Cannon 4 | . . . 3 1 . Ballistic Gun 8 | 1 . . 4 . 3 Ballistic Cannon 4 | . 1 3 . . . Launcher 5 | . . 1 2 1 1 Special Weapon 1 | . . . . 1 . Impact Weapon . | . . . . . . Slashing Weapon 2 | . . 1 1 . . Piercing Weapon . | . . . . . . Special Melee Weapon 1 | . . . . . 1 Unidentified Prototypes 3 | . . 1 1 1 . Corrupted Parts 2 | . . 1 1 . . System Corruption 2 | . . 1 1 . . Parts Lost 14 | . 1 3 3 3 4 Power 3 | . . 1 1 . 1 Propulsion 3 | . . . 2 1 . Utility 2 | . . . . . 2 Weapon 6 | . 1 2 . 2 1 Highest Loss Streak 3 | . 1 2 1 3 3 To Critical Strikes 2 | . . . . . 2 Average Slot Usage (%) 86 | . 91 83 86 87 81 Engine 11 | . 14 13 9 11 10 Treads 25 | . 17 2 29 33 31 Wheel 6 | . 10 25 2 . 1 Device 3 | . 6 . 4 3 1 Storage 11 | . 14 14 11 11 9 Hackware 1 | . . . 4 1 . Protection 4 | . . . . 5 16 Energy Gun 3 | . 3 5 1 9 . Energy Cannon 2 | . . . 3 5 . Ballistic Gun 8 | . 18 . 14 1 2 Ballistic Cannon 2 | . 6 15 . . . Slashing Weapon 1 | . . 5 1 . . Special Melee Weapon 1 | . . . . . 5 Naked Turns . | . . . . . . Heaviest Build 162 | 15 150 154 158 162 157 Greatest Support 69 | 40 46 40 69 66 64 Greatest Overweight (x) 13 | . 9 9 9 2 13 Average Overweight (x) 2 | . 2 4 2 2 1 Largest Inventory Capacity 30 | 8 30 30 30 30 30 Average Capacity 26 | 8 19 30 30 30 22 Most Carried 30 | 8 29 30 30 30 30 Average Carried 24 | 6 14 28 29 28 19 Final Capacity 30 | 8 30 30 30 30 5 Final Carried 30 | 8 29 30 30 30 5 Class Distribution -------------------- 80% | Hauler-Mutant 19% | Mutant Dominant Class ---------------- Hauler-Mutant | -10/Materials Hauler-Mutant | -10/Mines Hauler-Mutant | -9/Materials Hauler-Mutant | -9/Mines Mutant | -9/Exiles Resources | -11 -10 -10 -9 -9 -9 ----------- Run | Jun Mat Min Mat Min Exi Matter Collected 2531 | 304 528 244 1044 211 200 Remotely 157 | . . . 157 . . Salvage Created 3739 | 118 1040 315 2113 149 4 Parts 226 | 13 55 17 122 19 . Haulers Intercepted 8 | . 2 . 6 . . Recyclers Shooed 7 | . . . 7 . . Parts Field Recycled . | . . . . . . Retrieved Matter . | . . . . . . Parts Self-Destructed . | . . . . . . Prevented . | . . . . . . Kills | -11 -10 -10 -9 -9 -9 ------- Run | Jun Mat Min Mat Min Exi Combat Hostiles Destroyed 69 | . 18 7 31 10 3 Guns 37 | . 14 2 20 1 . Cannons 13 | . 4 5 4 . . AOE 19 | . . . 7 9 3 Classes Destroyed 13 | 2 7 2 . 2 . Worker 6 | . 1 . 5 . . Builder 3 | . . 1 1 1 . Tunneler 3 | 3 . . . . . Hauler 8 | . 2 . 6 . . Recycler 13 | 1 5 . 7 . . Mechanic 1 | . 1 . . . . Operator 4 | . 2 . 2 . . Watcher 8 | . 3 . 5 . . Swarmer 26 | . 9 3 8 6 . Grunt 26 | . 9 2 15 . . Sentry 10 | . . 2 8 . . Demolisher 1 | . . . . 1 . Assembled 6 | . . . . 3 3 Thug 1 | . . . . 1 . Best Kill Streak 6 | 1 4 3 6 4 3 Combat Bots Only 4 | . 3 3 4 4 3 Max Kills in Single Turn 6 | 1 1 1 6 3 1 Gunslinging . | . . . . . . Exploded 4 | . . . 4 3 1 Melee . | . . . . . . Uniques/NPCs Destroyed 1 | . . 1 . . . YI-UF0 (-10/Mines) Combat | -11 -10 -10 -9 -9 -9 -------- Run | Jun Mat Min Mat Min Exi Damage Taken 4228 | . 591 529 1698 610 800 Core 604 | . 94 104 246 76 84 Absorbed by Shields . | . . . . . . Redirected to Shielding 73 | . . . . . 73 Regen/Repaired (Parts) 293 | . . . 293 . . Core Remaining (%) 60 | 100 . 20 . . . Volleys Fired 325 | 9 74 41 134 19 48 Largest 2 | 2 2 2 2 2 2 Hottest 143 | 40 85 85 143 113 70 Shots Fired 547 | 18 149 60 241 26 53 Gun 389 | 18 118 32 164 7 50 Cannon 132 | . 31 28 68 5 . Launcher 16 | . . . 9 4 3 Special 10 | . . . . 10 . Kinetic 376 | 18 137 28 141 2 50 Thermal 122 | . 12 13 82 15 . Explosive 16 | . . . 9 4 3 Electromagnetic 33 | . . 19 9 5 . Robot Hit Streak 21 | 4 12 16 21 8 8 Robot Miss Streak 6 | 1 6 3 4 2 3 Penetration Max . | . . . . . . Secondary Targets 1 | . 1 . . . . Max Gunslinging Chain 1 | . 1 . . . . Shots Hit Robots 360 | 12 91 36 163 15 43 Core Hits 175 | 5 43 16 75 24 12 Critical Kills 2 | . 1 . 1 . . Critical Parts Destroyed 2 | . . . 2 . . Critical Strikes 8 | . 2 3 3 . . Burn 3 | . 1 2 . . . Destroy 4 | . 1 . 3 . . Blast 1 | . . 1 . . . Melee Attacks 6 | . . . 2 . 4 Impact . | . . . . . . Slashing 2 | . . . 2 . . Piercing . | . . . . . . Sneak Attacks 4 | . . . . . 4 Combat Hostiles . | . . . . . . Follow-up Attacks . | . . . . . . Damage Inflicted 7568 | 155 1282 673 3880 835 743 Guns 4051 | 155 992 275 1987 70 572 Cannons 1606 | . 290 288 965 63 . Explosions 1808 | . . 110 923 604 171 Melee . | . . . . . . Ramming 16 | . . . 5 11 . Kinetic 3859 | 155 1178 288 1666 . 572 Thermal 1903 | . 104 239 1192 368 . Explosive 1480 | . . . 923 386 171 Electromagnetic 310 | . . 146 94 70 . Impact . | . . . . . . Slashing . | . . . . . . Piercing . | . . . . . . Highest Corruption 4 | . 3 4 1 1 1 Average Corruption 1 | . 2 3 1 1 1 Corruption Purged . | . . . . . . Corruption Blocked . | . . . . . . Effects 73 | . 2 17 30 16 8 Message Errors 14 | . . 2 7 3 2 Matter Fused 17 | . . 4 6 5 2 Heat Flow Errors 6 | . . 2 3 1 . Energy Discharges 13 | . 1 3 7 1 1 Parts Rejected 1 | . . 1 . . . Parts Fused 1 | . . . 1 . . Data Loss (minor) 7 | . . 2 3 1 1 Data Loss (major) 2 | . . . . 1 1 Misfires 3 | . 1 1 1 . . Alerts 8 | . . 1 2 4 1 Weapon Failures 1 | . . 1 . . . Overload Shots . | . . . . . . Overflow Damage 94 | . . . 28 66 . Projectiles 16 | . . . 14 2 . Explosions 78 | . . . 14 64 . Melee . | . . . . . . Knockbacks 13 | . 8 5 . . . Impact . | . . . . . . Kinetic 9 | . 6 3 . . . Secondary 4 | . 2 2 . . . Self-Inflicted Damage 215 | . . 23 79 113 . Shots 7 | . . 1 3 3 . Rammed 2 | . . . 1 1 . Targets Rammed 2 | . . . 1 1 . Kicked . | . . . . . . Crushed . | . . . . . . Highest Temperature 390 | . 96 390 285 162 . Average Temperature 73 | . 28 99 75 68 . Received Heat Transfer 1047 | . 186 186 675 . . Siege Activations . | . . . . . . Robots Corrupted 1 | . . 1 . . . Combat Hostiles . | . . . . . . Parts Fried 1 | . . 1 . . . Impact Corruptions . | . . . . . . Robots Melted . | . . . . . . Combat Hostiles . | . . . . . . Parts Melted 6 | . 1 . 5 . . Heat Transferred 3730 | . 370 618 2035 707 . Parts Sabotaged . | . . . . . . Parts Stolen . | . . . . . . Parts Stripped . | . . . . . . Power Chain Reactions 4 | . . 2 . 2 . Missiles Intercepted . | . . . . . . Alert | -11 -10 -10 -9 -9 -9 ------- Run | Jun Mat Min Mat Min Exi Peak Influence 605 | 20 269 256 605 367 . Initial 235 | . 13 84 5 235 . Average 176 | 12 126 86 260 138 . Maximum Alert Level 2 | . 1 1 2 1 . Low Security (%) 71 | 100 85 83 56 77 . Level 1 15 | . 14 16 12 22 . Level 2 12 | . . . 30 . . Level 3 . | . . . . . . Level 4 . | . . . . . . Level 5 . | . . . . . . High Security . | . . . . . . Max Security . | . . . . . . Squads Dispatched 11 | . 4 . 7 . . Investigation 9 | . 3 . 6 . . Extermination . | . . . . . . Reinforcement 2 | . 1 . 1 . . Assault . | . . . . . . Garrison . | . . . . . . Intercept . | . . . . . . Searches Triggered . | . . . . . . Construction Impeded . | . . . . . . Haulers Reinforced . | . . . . . . Active Scanning Responses . | . . . . . . Cargo Convoy Interrupts . | . . . . . . Stealth | -11 -10 -10 -9 -9 -9 --------- Run | Jun Mat Min Mat Min Exi Distress Signals 3 | . . . 3 . . Communications Jammed . | . . . . . . Distress Signals . | . . . . . . Times Spotted 111 | . 25 7 58 14 7 Peak Tracking Total 9 | . 4 3 7 4 9 Tactical Retreats 5 | . . . 5 . . Traps | -11 -10 -10 -9 -9 -9 ------- Run | Jun Mat Min Mat Min Exi Traps Triggered 4 | . 2 1 1 . . Indirectly . | . . . . . . Trap Hack Attempts . | . . . . . . Triggered . | . . . . . . Disarmed . | . . . . . . Reprogrammed . | . . . . . . Reused . | . . . . . . Traps Extracted . | . . . . . . Installed . | . . . . . . Triggered . | . . . . . . Exploded 3 | . . . . . 3 Machines | -11 -10 -10 -9 -9 -9 ---------- Run | Jun Mat Min Mat Min Exi Machines Disabled 10 | . 2 . 3 1 4 Max in Single Turn 1 | . 1 . 1 1 1 Machines Repaired . | . . . . . . Machines Sabotaged . | . . . . . . Overloaded Fab Kills . | . . . . . . Hacking | -11 -10 -10 -9 -9 -9 --------- Run | Jun Mat Min Mat Min Exi Machines Accessed 24 | . 8 1 13 1 1 Terminals 14 | . 6 . 8 . . Fabricators . | . . . . . . Repair Stations 1 | . . . 1 . . Recycling Units 4 | . 2 . 2 . . Scanalyzers 2 | . . . 2 . . Garrison Access . | . . . . . . Total Hacks 88 | . 32 1 53 1 1 Successful 59 | . 19 1 37 1 1 Failed 29 | . 13 . 16 . . Catastrophic 5 | . 3 . 2 . . Database Lockouts . | . . . . . . Manual 58 | . 22 . 35 . 1 Terminals 51 | . 20 . 31 . . Fabricators . | . . . . . . Repair Stations 4 | . . . 4 . . Recycling Units 24 | . 12 . 12 . . Scanalyzers 6 | . . . 6 . . Garrison Access . | . . . . . . Terminal Hacks 23 | . 6 1 14 1 1 Robot Analysis 10 | . 3 . 7 . . Prototype ID Bank 5 | . 3 . 2 . . Open Door 2 | . . 1 . 1 . Emergency Access Points 1 | . . . 1 . . Unreport Threat 1 | . . . 1 . . Hauler Manifests 1 | . . . 1 . . Zone Layout 2 | . . . 2 . . EX-Prototype ID Bank 1 | . . . . . 1 Fabricator Hacks . | . . . . . . Repair Station Hacks 4 | . . . 4 . . Scan Component 2 | . . . 2 . . Repair 2 | . . . 2 . . Recycling Unit Hacks 6 | . 3 . 3 . . Report Inventory 5 | . 2 . 3 . . Retrieve Components 1 | . 1 . . . . Scanalyzer 4 | . . . 4 . . Insert Component 2 | . . . 2 . . Analyze 2 | . . . 2 . . Garrison Access Hacks . | . . . . . . Unauthorized Hacks 22 | . 10 . 12 . . Terminals 8 | . 3 . 5 . . Botnet 8 | . 3 . 5 . . Fabricators . | . . . . . . Repair Stations . | . . . . . . Recycling Units 12 | . 7 . 5 . . Monitor 2 | . 1 . 1 . . Reject 3 | . 2 . 1 . . Mask 3 | . 2 . 1 . . Tunnel 4 | . 2 . 2 . . Scanalyzers 2 | . . . 2 . . Extract 2 | . . . 2 . . Garrison Access . | . . . . . . Data Cores Recovered 3 | . 1 . 2 . . Used 1 | . . . 1 . . Hacking Detections 19 | . 8 . 11 . . Full Trace Events 5 | . 4 . 1 . . Feedback Events 1 | . 1 . . . . Corruption 1 | . 1 . . . . Feedback Blocked . | . . . . . . Robot Schematics Acquired . | . . . . . . Robots Built . | . . . . . . Authchips . | . . . . . . Time . | . . . . . . Total Robot Build Rating . | . . . . . . Part Schematics Acquired 9 | . . . 9 . . Parts Built . | . . . . . . Authchips . | . . . . . . Time . | . . . . . . Total Part Build Rating . | . . . . . . Parts Repaired 2 | . . . 2 . . Time 76 | . . . 76 . . Parts Recycled . | . . . . . . Recycled Matter . | . . . . . . Retrieved Matter . | . . . . . . Retrieved Components 10 | . 10 . . . . Parts Scanalyzed 2 | . . . 2 . . Part Schematics Acquired 2 | . . . 2 . . Parts Damaged . | . . . . . . Bothacking | -11 -10 -10 -9 -9 -9 ------------ Run | Jun Mat Min Mat Min Exi Used RIF Installer . | . . . . . . Robots Hacked 4 | . . . . . 4 Non-combat 3 | . . . . . 3 Combat 1 | . . . . . 1 Robot Hacks Applied 4 | . . . . . 4 parse_system 4 | . . . . . 4 Relay Couplers Released . | . . . . . . Fabnet Peak Effective % . | . . . . . . Robots Rewired . | . . . . . . Allies Hacked . | . . . . . . Hacks Repelled . | . . . . . . Allies | -11 -10 -10 -9 -9 -9 -------- Run | Jun Mat Min Mat Min Exi Total Allies 3 | . . . . 3 . Largest Group 3 | . . . . 3 1 Highest-Rated Group 40 | . . . . 40 16 Highest-Rated Ally 16 | . . . . 16 16 Total Orders . | . . . . . . Ally Attacks 30 | . . . . 30 . Total Damage 298 | . . . . 298 . Kills 4 | . . . . 4 . Allies Corrupted . | . . . . . . Allies Melted . | . . . . . . Intel | -11 -10 -10 -9 -9 -9 ------- Run | Jun Mat Min Mat Min Exi Robot Analysis Total 9 | . 2 . 7 . . Derelict Logs Recovered 1 | . . . . 1 . Drone Launches . | . . . . . . Drone Recoveries . | . . . . . . Exploration | -11 -10 -10 -9 -9 -9 ------------- Run | Jun Mat Min Mat Min Exi Turns Passed 9429 | 140 1554 1086 3196 1815 1638 Spaces Moved 3429 | 63 691 521 906 560 688 Core . | . . . . . . Treads 2289 | 61 328 13 702 560 625 Legs 2 | 2 . . . . . Wheels 1138 | . 363 508 204 . 63 Hover . | . . . . . . Flight . | . . . . . . Fastest Speed 100 | 120 100 160 160 305 153 Average Speed 228 | 158 172 167 279 305 208 Slowest Speed 625 | 160 400 400 320 313 625 Overloaded Moves . | . . . . . . Propulsion Burnouts . | . . . . . . Robots Hopped . | . . . . . . Cave-ins Triggered . | . . . . . . Exploration Rate (%) 75 | 6 98 97 86 98 68 Regions Visited 5 Branch Regions 3 Pre-discovered Areas 5 | . 2 . 2 1 . Known Exits Taken . | . . . . . . Unknown Exits Taken 5 | 1 1 1 1 1 . Scrap Searched 3 | . . 1 . 2 . Spaces Dug 2 | . . . 2 . . Terrain Destroyed 160 | . . 10 86 40 24 Melee 2 | . . . 2 . . Projectile . | . . . . . . AOE 158 | . . 10 84 40 24 Terrain Rammed . | . . . . . . Walls Destroyed . | . . . . . . Machines Disabled . | . . . . . . Actions | -11 -10 -10 -9 -9 -9 --------- Run | Jun Mat Min Mat Min Exi Total 4528 | 83 910 677 1368 630 860 Wait 424 | 5 83 71 185 27 53 Move 3424 | 62 690 520 905 559 688 Hop . | . . . . . . Pick Up 126 | 2 35 19 49 7 14 Fast Attach 14 | 1 1 1 8 . 3 Attach 22 | . 2 3 6 4 7 Detach 7 | . 1 . 3 2 1 Swap 50 | 4 7 7 21 6 5 Drop 128 | . 17 15 54 5 37 Fire 325 | 9 74 41 134 19 48 Melee 6 | . . . 2 . 4 Ram . | . . . . . . Kick . | . . . . . . Crush 2 | . . . 1 1 . Escape Stasis . | . . . . . . Rewire . | . . . . . . Trap . | . . . . . . Miscellaneous . | . . . . . . Route ------- -11/Junkyard -10/Materials (discovered 4 exits: *Mat x3 / *Min) -10/Mines (discovered 2 exits: *Mat x2) -9/Materials (discovered 3 exits: [*Mat x2] / *Min) -9/Mines (discovered 4 exits: [*Mat x2] / *Exi / [*Zio]) -9/Exiles History --------- Turn | Location | Event 4 | -11/Junkyard | Discovered new exit (range 2) 141 | -11/Junkyard | Entered Materials 302 | -10/Materials | Build established: Mutant 484 | -10/Materials | Discovered new exit (range 12) 705 | -10/Materials | Discovered new exit (range 6) 860 | -10/Materials | Discovered new exit (range 10) 1176 | -10/Materials | Build established: Hauler-Mutant 1372 | -10/Materials | Discovered new exit (range 11) 1695 | -10/Materials | Entered Mines 1714 | -10/Mines | A weapon hastily lodged in a ceiling crevice suddenly fell to the ground 1880 | -10/Mines | Core integrity fell below 50% 2175 | -10/Mines | Discovered new exit (range 6) 2236 | -10/Mines | Met a Derelict who couldn't figure out how to use a Trap Extractor 2375 | -10/Mines | YI-UF0 nonchalantly dropped a Grenade Launcher on the ground 2530 | -10/Mines | Destroyed YI-UF0 2537 | -10/Mines | Found Corrupted Prototype Launcher 2701 | -10/Mines | Discovered new exit (range 10) 2780 | -10/Mines | Identified YI-UF0's Doublenader 2781 | -10/Mines | Entered Materials 2781 | -9/Materials | Evolved 2 slots: Propulsion x1, Utility x1 3181 | -9/Materials | Discovered new exit (range 16) 3732 | -9/Materials | Discovered new exit (range 8) 5048 | -9/Materials | Discovered new exit (range 16) 5149 | -9/Materials | Core integrity fell below 50% 5344 | -9/Materials | Repaired Adv. Treads 5383 | -9/Materials | Repaired Adv. Treads 5977 | -9/Materials | Entered Mines 6171 | -9/Mines | Discovered new exit (range 15) 6196 | -9/Mines | Assembled infested the area 6252 | -9/Mines | Core integrity fell below 20% 6284 | -9/Mines | Lost 3 parts (1n2w) 6367 | -9/Mines | Discovered new exit (range 5) 6564 | -9/Mines | Assisted by bots powering up and referring to "LRC-V3" 6731 | -9/Mines | A Derelict revealed a hidden shortcut to a safe place 7048 | -9/Mines | Learned location of Storage (-7) 7167 | -9/Mines | Found the Drone Emporium 7184 | -9/Mines | Found Prototype Device 7185 | -9/Mines | Identified Thief Drone Bay 7306 | -9/Mines | Learned 8 Materials zone layouts 7347 | -9/Mines | Discovered new exit (range 8) 7792 | -9/Mines | Entered Exiles 7792 | -9/Exiles | Accompanied by 1 ally 7864 | -9/Exiles | Met 8R-AWN 7921 | -9/Exiles | Met EX-HEX 8046 | -9/Exiles | Met EX-DEC 8084 | -9/Exiles | Met EX-BIN 8129 | -9/Exiles | Aligned with FarCom system 8133 | -9/Exiles | Given EX-Vault access code 8208 | -9/Exiles | Opened EX-Vault 8224 | -9/Exiles | Found Supersonic Drone Bay 8232 | -9/Exiles | Found Potential Leg 8237 | -9/Exiles | Found Potential Leg 8305 | -9/Exiles | Warned to stay clear of 0b10 Research branches 8788 | -9/Exiles | Build established: Mutant 9237 | -9/Exiles | Attacked by the Exiles 9378 | -9/Exiles | Lost 3 parts (1p1u1w) 9430 | -9/Exiles | Destroyed by 8R-AWN with 8R-AWN's Boregun Last Messages --------------- 09413_ Penetrated by HV Slug. 09413_ HV Slug penetrates Wall. 09413_ Penetrated by HV Slug. 09413_ HV Slug penetrates Wall. 09417_ Penetrated by HV Slug. 09417_ HV Slug penetrates Wall. 09417_ HV Slug penetrates Machine. 09417_ HV Slug penetrates Wall. 09422_ Penetrated by HV Slug. 09422_ Critical hit (Destroy). 09422_ Hrd. Medium Armor Plating destroyed. 09422_ HV Slug penetrates Wall. 09422_ Acquired Med. Armor Plating. 09426_ Penetrated by HV Slug. 09426_ Critical hit (Destroy). 09426_ HV Slug penetrates Wall. 09426_ Penetrated by HV Slug. 09426_ HV Slug penetrates Wall. 09429_ Wall collapses. 09430_ Penetrated by HV Slug. Map ----- +----------------------------------------------------+ | ?????????????????????????????????????????????????? | | ?????????????????????????????????????????????????? | | ?????????????????????????????????????????????????? | | ?????????????????????????????????????????????????? | | ?????????????????????????????????????????????????? | | ?????????????????????????????????????????????????? | | ?????????????????????????????????????????????????? | | ?????????????????????????????????????????????????? | | ?????????????????????????????????????????????????? | | ?????????????????????????????????????????????????? | | ?????????????????????????????????????????????????? | | ?????????????????????????????????????????????????? | | ????????????????????? ??????????????#######??????? | | ????????????????????? ######???????#!!! "#??????? | | ???????????????????? #""#??????# "#??????? | | ????????????????????? ??????# "#??????? | | ????????????????????" #????## ""#??????? | | ????????????????????? #####" ""#??????? | | ?????????????????????# ##" ""???????? | | ??????????????????????# # #????????? | | ?????????????????????????# #######??? | | ????????????????????????????# #??? | | ?????????????????????????????## #??? | | ????????????????????########## # #??? | | ????????????????????# ;]!! "" ! #??? | | ????????????????????#?#!=@=!! ] ## "### | | ????????????????????# #!***=g[/! #?## ""# | | ????????????????????# ;!! =!!== ##??#" | | ???????????????????# # ! #;#???#"# | | ??????????????????# # ;;;##;;#####???#### | | ?????????????????# ## ###??????????### * | | ????????????????# ####?##???????????????### | | ????????????????# #?????????????????????????## | | ????????????????#????????????????????????????## | | ??????????????????????????????????????????????##" | | ???????????????????????????????????????????????#"" | | ??????????????????????????????????????????????##" | | ??????????????????????????????????????????????#"" | | ?????????????????????????????????????????????##""" | | ?????????????????????????????????????????????#""" | | ?????????????????????????????????????????????#""" | | ?????????????????????????????????????????????#"" | | ?????????????????????????????????????????????#""" | | ?????????????????????????????????????????????#"" | | ?????????????????????????????????????????????##"" | | ??????????????????????????????????????????????#""" | | ??????????????????????????????????????????????## | | ???????????????????????????????????????????????#" | | ???????????????????????????????????????????????#"" | | ???????????????????????????????????????????????#"" | +----------------------------------------------------+ Best States ------------- Heat Dissipation 50 Energy Generation 18 Energy Capacity 280 Matter Stores 300 Matter Capacity 300 Sight Range 16 Terrain Scan Range 16 Terrain Scan Density 10 Armor Coverage 450 Propulsion Shielding 66 Evasion (%) 40 Targeting Accuracy 8 Recoil Reduction 3 Offensive Hacking 10 Item Schematics ----------------- Adv. Targeting Computer | -9/Materials | Scanalyzed Med. Armor Plating | -9/Materials | Extracted Visual Processing Unit | -9/Materials | Extracted Huge Storage Unit | -9/Materials | Extracted ECM Suite | -9/Materials | Extracted Arm. Treads | -9/Materials | Scanalyzed Imp. Assault Rifle | -9/Materials | Extracted Com. Wheel | -9/Materials | Extracted Lgt. Cannon | -9/Materials | Extracted Robot Schematics ------------------ None Fabricated ------------ Nothing Alien Tech Used ----------------- None Achievements -------------- None Challenges ------------ None Game ------ Seed TeslaSegregatorGun Manual? 0 Play Time 01:07:40 Cumulative 481.5 hours Start 2023.03.16 @ 13:20:36 End 2023.03.16 @ 15:21:14 Sessions 1 Manual Loads 0 Difficulty Rogue Special Mode None Game No. 520 Rogue 520 Adventurer 0 Explorer 0 Win Type - Total 1 Types 1/0/0/0/0/0/0/0/0 Lore% 61 Gallery% 82 Achievement% 65 Wizard Run 0 Options --------- ASCII 0 Keyboard 0 Movement Mouse Keybinds 0 Fullscreen 2 Font 24/Smallcaps Map View 76x50 Tactical HUD 1 Map Filters NONE Filters NONE Steam 1 RUN: 8a398ea4-0da4-43c4-aedf-846e5cd7707e